[Event "Titled Tuesday Blitz April 18 Late 2023"]
[White "Sonnenschein, Philipp"]
[Black "Mihajlov, Sebastian"]
[WhiteFideId "16250877"]
[BlackFideId "1512110"]
[WhiteElo "2224"]
[BlackElo "2478"]
[Result "0-1"]
[Round "06"]
[TimeControl "180+2"]
[Date "2023.04.18"]
[WhiteClock "0:00:31"]
[BlackClock "0:01:41"]

1. e4 {[%clk 0:03:00]}  e6 {[%clk 0:03:00]} 2. d4 {[%clk 0:03:00]}  d5 {[%clk 0:03:01]} 3. Nc3 {[%clk 0:02:59]}  Nf6 {[%clk 0:03:01]} 4. e5 {[%clk 0:02:59]}  Nfd7 {[%clk 0:03:01]} 5. f4 {[%clk 0:03:00]}  c5 {[%clk 0:03:02]} 6. Nf3 {[%clk 0:03:00]}  Nc6 {[%clk 0:03:03]} 7. Be3 {[%clk 0:03:00]}  h6 {[%clk 0:03:04]} 8. Qd2 {[%clk 0:02:55]}  g5 {[%clk 0:03:04]} 9. fxg5 {[%clk 0:02:45]}  cxd4 {[%clk 0:03:05]} 10. Nxd4 {[%clk 0:02:41]}  Ndxe5 {[%clk 0:03:05]} 11. Nxc6 {[%clk 0:02:33]}  Nxc6 {[%clk 0:02:53]} 12. gxh6 {[%clk 0:02:33]}  Bxh6 {[%clk 0:02:53]} 13. Bxh6 {[%clk 0:02:30]}  Qh4+ {[%clk 0:02:53]} 14. g3 {[%clk 0:02:29]}  Qxh6 {[%clk 0:02:54]} 15. Qxh6 {[%clk 0:02:26]}  Rxh6 {[%clk 0:02:55]} 16. O-O-O {[%clk 0:02:23]}  Bd7 {[%clk 0:02:56]} 17. h4 {[%clk 0:02:16]}  Ke7 {[%clk 0:02:55]} 18. Be2 {[%clk 0:02:16]}  Rah8 {[%clk 0:02:54]} 19. h5 {[%clk 0:02:15]}  Rg8 {[%clk 0:02:48]} 20. g4 {[%clk 0:02:10]}  Ne5 {[%clk 0:02:48]} 21. Rdg1 {[%clk 0:02:09]}  f6 {[%clk 0:02:48]} 22. Nd1 {[%clk 0:02:01]}  Nf7 {[%clk 0:02:39]} 23. Nf2 {[%clk 0:01:52]}  e5 {[%clk 0:02:39]} 24. c4 {[%clk 0:01:51]}  d4 {[%clk 0:02:35]} 25. Bf3 {[%clk 0:01:46]}  b6 {[%clk 0:02:29]} 26. Bd5 {[%clk 0:01:37]}  Be6 {[%clk 0:02:29]} 27. Bxe6 {[%clk 0:01:35]}  Kxe6 {[%clk 0:02:30]} 28. Ne4 {[%clk 0:01:34]}  Ng5 {[%clk 0:02:28]} 29. Ng3 {[%clk 0:01:30]}  Rh7 {[%clk 0:02:15]} 30. Rf1 {[%clk 0:01:21]}  Rc7 {[%clk 0:02:13]} 31. b3 {[%clk 0:01:15]}  b5 {[%clk 0:02:13]} 32. Kd2 {[%clk 0:01:09]}  bxc4 {[%clk 0:02:13]} 33. bxc4 {[%clk 0:01:10]}  Rxc4 {[%clk 0:02:13]} 34. h6 {[%clk 0:01:07]}  Rgc8 {[%clk 0:02:04]} 35. h7 {[%clk 0:01:07]}  Rc2+ {[%clk 0:02:04]} 36. Ke1 {[%clk 0:01:04]}  Rc1+ {[%clk 0:01:56]} 37. Kf2 {[%clk 0:01:05]}  Rxf1+ {[%clk 0:01:52]} 38. Nxf1 {[%clk 0:00:57]}  Rh8 {[%clk 0:01:51]} 39. Ng3 {[%clk 0:00:53]}  Rxh7 {[%clk 0:01:52]} 40. Nh5 {[%clk 0:00:48]}  Rb7 {[%clk 0:01:52]} 41. Rc1 {[%clk 0:00:42]}  Rb2+ {[%clk 0:01:52]} 42. Kf1 {[%clk 0:00:41]}  Ne4 {[%clk 0:01:48]} 43. a4 {[%clk 0:00:36]}  d3 {[%clk 0:01:46]} 44. Ng7+ {[%clk 0:00:32]}  Kd5 {[%clk 0:01:44]} 45. Nf5 {[%clk 0:00:32]}  Rf2+ {[%clk 0:01:41]} 46. Ke1 {[%clk 0:00:31]}  d2+ {[%clk 0:01:41]} 0-1


[Site "https://www.chess.com"]

[Event "Titled Tuesday Blitz April 18 Late 2023"]
[White "Martinez Ramirez, Lennis"]
[Black "Hajiyev, Kanan"]
[WhiteFideId "3509079"]
[BlackFideId "13404148"]
[WhiteElo "2410"]
[BlackElo "2103"]
[Result "1-0"]
[Round "06"]
[TimeControl "180+2"]
[Date "2023.04.18"]
[WhiteClock "0:01:08"]
[BlackClock "0:00:05"]

1. d4 {[%clk 0:03:00]}  Nf6 {[%clk 0:02:41]} 2. c4 {[%clk 0:03:00]}  e6 {[%clk 0:02:41]} 3. Nf3 {[%clk 0:02:59]}  b6 {[%clk 0:02:41]} 4. g3 {[%clk 0:02:58]}  Ba6 {[%clk 0:02:42]} 5. Nbd2 {[%clk 0:02:57]}  Ne4 {[%clk 0:02:41]} 6. Nxe4 {[%clk 0:02:55]}  Bxc4 {[%clk 0:02:36]} 7. Ned2 {[%clk 0:02:54]}  Bd5 {[%clk 0:02:33]} 8. Bg2 {[%clk 0:02:54]}  Be7 {[%clk 0:02:32]} 9. O-O {[%clk 0:02:53]}  O-O {[%clk 0:02:33]} 10. e4 {[%clk 0:02:53]}  Bb7 {[%clk 0:02:33]} 11. Re1 {[%clk 0:02:53]}  d6 {[%clk 0:02:33]} 12. Nb1 {[%clk 0:02:53]}  Nd7 {[%clk 0:02:34]} 13. Nc3 {[%clk 0:02:54]}  Rc8 {[%clk 0:02:34]} 14. d5 {[%clk 0:02:54]}  e5 {[%clk 0:02:34]} 15. b4 {[%clk 0:02:51]}  h6 {[%clk 0:02:28]} 16. b5 {[%clk 0:02:47]}  Nc5 {[%clk 0:02:28]} 17. Be3 {[%clk 0:02:46]}  Qd7 {[%clk 0:02:26]} 18. Nd2 {[%clk 0:02:44]}  Ra8 {[%clk 0:02:22]} 19. Nb3 {[%clk 0:02:39]}  Qe8 {[%clk 0:02:11]} 20. Nxc5 {[%clk 0:02:39]}  dxc5 {[%clk 0:02:05]} 21. a4 {[%clk 0:02:39]}  Bd6 {[%clk 0:01:48]} 22. Bh3 {[%clk 0:02:35]}  Bc8 {[%clk 0:01:41]} 23. Bxc8 {[%clk 0:02:33]}  Qxc8 {[%clk 0:01:42]} 24. a5 {[%clk 0:02:32]}  Qh3 {[%clk 0:01:41]} 25. Qf3 {[%clk 0:02:32]}  h5 {[%clk 0:01:36]} 26. Qg2 {[%clk 0:02:32]}  Qg4 {[%clk 0:01:36]} 27. h3 {[%clk 0:02:31]}  Qg6 {[%clk 0:01:37]} 28. g4 {[%clk 0:02:30]}  f6 {[%clk 0:01:34]} 29. axb6 {[%clk 0:02:28]}  axb6 {[%clk 0:01:33]} 30. Ra6 {[%clk 0:02:27]}  h4 {[%clk 0:01:20]} 31. Rea1 {[%clk 0:02:25]}  Rac8 {[%clk 0:01:18]} 32. Qf3 {[%clk 0:02:24]}  Qf7 {[%clk 0:01:08]} 33. Qf5 {[%clk 0:02:22]}  Rfe8 {[%clk 0:01:05]} 34. g5 {[%clk 0:02:20]}  g6 {[%clk 0:01:06]} 35. Qxf6 {[%clk 0:02:18]}  Qh7 {[%clk 0:01:05]} 36. Rxb6 {[%clk 0:01:47]}  cxb6 {[%clk 0:00:57]} 37. Qxd6 {[%clk 0:01:47]}  Rb8 {[%clk 0:00:45]} 38. Ra6 {[%clk 0:01:45]}  Red8 {[%clk 0:00:22]} 39. Qxe5 {[%clk 0:01:43]}  Qf7 {[%clk 0:00:22]} 40. Qf6 {[%clk 0:01:36]}  Qh7 {[%clk 0:00:20]} 41. Rxb6 {[%clk 0:01:32]}  Ra8 {[%clk 0:00:20]} 42. Qxg6+ {[%clk 0:01:32]}  Qxg6 {[%clk 0:00:18]} 43. Rxg6+ {[%clk 0:01:33]}  Kf7 {[%clk 0:00:18]} 44. Ra6 {[%clk 0:01:30]}  c4 {[%clk 0:00:19]} 45. e5 {[%clk 0:01:26]}  Kg7 {[%clk 0:00:16]} 46. Kg2 {[%clk 0:01:25]}  Kf7 {[%clk 0:00:15]} 47. f4 {[%clk 0:01:25]}  Rab8 {[%clk 0:00:15]} 48. Ra7+ {[%clk 0:01:24]}  Kg6 {[%clk 0:00:15]} 49. Kf3 {[%clk 0:01:23]}  Kh5 {[%clk 0:00:07]} 50. f5 {[%clk 0:01:22]}  Rh8 {[%clk 0:00:06]} 51. Ra6 {[%clk 0:01:14]}  Rbf8 {[%clk 0:00:06]} 52. Ke4 {[%clk 0:01:12]}  Rh7 {[%clk 0:00:05]} 53. Rh6+ {[%clk 0:01:10]}  Rxh6 {[%clk 0:00:05]} 54. gxh6 {[%clk 0:01:11]}  Rf7 {[%clk 0:00:03]} 55. e6 {[%clk 0:01:10]}  Rh7 {[%clk 0:00:03]} 56. f6 {[%clk 0:01:09]}  Rb7 {[%clk 0:00:03]} 57. f7 {[%clk 0:01:09]}  Rxf7 {[%clk 0:00:04]} 58. exf7 {[%clk 0:01:09]}  Kg6 {[%clk 0:00:05]} 59. f8=Q {[%clk 0:01:08]}  Kh5 {[%clk 0:00:05]} 60. Qf5# {[%clk 0:01:08]} 1-0


[Site "https://www.chess.com"]

[Event "Titled Tuesday Blitz April 18 Late 2023"]
[White "Feng, Eric"]
[Black "Goncalves, Davi Sulzbacher"]
[WhiteFideId "30952590"]
[BlackFideId "2154510"]
[WhiteElo "1785"]
[BlackElo "2182"]
[Result "1-0"]
[Round "06"]
[TimeControl "180+2"]
[Date "2023.04.18"]
[WhiteClock "0:00:22"]
[BlackClock "0:00:05"]

1. d4 {[%clk 0:03:00]}  Nf6 {[%clk 0:02:59]} 2. c4 {[%clk 0:02:59]}  g6 {[%clk 0:02:59]} 3. Nf3 {[%clk 0:02:59]}  Bg7 {[%clk 0:02:59]} 4. g3 {[%clk 0:02:59]}  O-O {[%clk 0:02:59]} 5. Bg2 {[%clk 0:03:00]}  d5 {[%clk 0:02:57]} 6. O-O {[%clk 0:02:56]}  c6 {[%clk 0:02:56]} 7. Nbd2 {[%clk 0:02:56]}  Bf5 {[%clk 0:02:55]} 8. b3 {[%clk 0:02:56]}  a5 {[%clk 0:02:52]} 9. a3 {[%clk 0:02:56]}  Ne4 {[%clk 0:02:48]} 10. Bb2 {[%clk 0:02:56]}  Nd7 {[%clk 0:02:46]} 11. e3 {[%clk 0:02:54]}  Ndc5 {[%clk 0:02:40]} 12. Nxe4 {[%clk 0:02:28]}  Bxe4 {[%clk 0:02:33]} 13. Nd2 {[%clk 0:02:14]}  Bxg2 {[%clk 0:02:26]} 14. Kxg2 {[%clk 0:02:14]}  Qd7 {[%clk 0:02:05]} 15. Qc2 {[%clk 0:02:10]}  Ne6 {[%clk 0:01:57]} 16. Rfd1 {[%clk 0:02:07]}  Ng5 {[%clk 0:01:50]} 17. h4 {[%clk 0:01:58]}  Qh3+ {[%clk 0:01:51]} 18. Kg1 {[%clk 0:01:58]}  Ne6 {[%clk 0:01:48]} 19. Qd3 {[%clk 0:01:48]}  Nc5 {[%clk 0:01:43]} 20. Qe2 {[%clk 0:01:41]}  Rfe8 {[%clk 0:01:17]} 21. cxd5 {[%clk 0:01:41]}  cxd5 {[%clk 0:01:17]} 22. Qb5 {[%clk 0:01:39]}  Rec8 {[%clk 0:01:10]} 23. Rab1 {[%clk 0:01:36]}  Qd7 {[%clk 0:01:00]} 24. Qe2 {[%clk 0:01:27]}  Ne6 {[%clk 0:00:56]} 25. Nf3 {[%clk 0:01:17]}  Nc7 {[%clk 0:00:50]} 26. Ne5 {[%clk 0:01:15]}  Qb5 {[%clk 0:00:48]} 27. Rd3 {[%clk 0:01:09]}  Bxe5 {[%clk 0:00:41]} 28. dxe5 {[%clk 0:01:10]}  Ne6 {[%clk 0:00:39]} 29. a4 {[%clk 0:01:10]}  Qa6 {[%clk 0:00:38]} 30. Qd1 {[%clk 0:01:04]}  Rd8 {[%clk 0:00:22]} 31. Rxd5 {[%clk 0:01:04]}  Rxd5 {[%clk 0:00:23]} 32. Qxd5 {[%clk 0:01:04]}  Rd8 {[%clk 0:00:24]} 33. Qb5 {[%clk 0:01:02]}  Qxb5 {[%clk 0:00:23]} 34. axb5 {[%clk 0:01:03]}  Rd5 {[%clk 0:00:23]} 35. f4 {[%clk 0:00:54]}  Rxb5 {[%clk 0:00:24]} 36. Ba3 {[%clk 0:00:55]}  a4 {[%clk 0:00:23]} 37. b4 {[%clk 0:00:50]}  Rd5 {[%clk 0:00:20]} 38. Kf2 {[%clk 0:00:48]}  Rd3 {[%clk 0:00:20]} 39. Bc1 {[%clk 0:00:44]}  Rb3 {[%clk 0:00:19]} 40. Rxb3 {[%clk 0:00:42]}  axb3 {[%clk 0:00:20]} 41. Ke2 {[%clk 0:00:42]}  h5 {[%clk 0:00:17]} 42. Kd3 {[%clk 0:00:42]}  Kf8 {[%clk 0:00:15]} 43. Kc3 {[%clk 0:00:43]}  Ke8 {[%clk 0:00:15]} 44. Kxb3 {[%clk 0:00:44]}  Kd7 {[%clk 0:00:16]} 45. Kc4 {[%clk 0:00:44]}  Ng7 {[%clk 0:00:16]} 46. e4 {[%clk 0:00:44]}  Ne6 {[%clk 0:00:16]} 47. Be3 {[%clk 0:00:43]}  Nc7 {[%clk 0:00:16]} 48. f5 {[%clk 0:00:43]}  Kc6 {[%clk 0:00:16]} 49. Bc5 {[%clk 0:00:42]}  e6 {[%clk 0:00:16]} 50. Bd6 {[%clk 0:00:30]}  Nb5 {[%clk 0:00:16]} 51. fxg6 {[%clk 0:00:28]}  fxg6 {[%clk 0:00:15]} 52. Bf8 {[%clk 0:00:28]}  Na3+ {[%clk 0:00:15]} 53. Kd3 {[%clk 0:00:28]}  Kb5 {[%clk 0:00:15]} 54. Ke3 {[%clk 0:00:28]}  Nc2+ {[%clk 0:00:07]} 55. Kf4 {[%clk 0:00:28]}  Nd4 {[%clk 0:00:08]} 56. Kg5 {[%clk 0:00:26]}  Ne2 {[%clk 0:00:08]} 57. g4 {[%clk 0:00:24]}  Ng3 {[%clk 0:00:07]} 58. Kf4 {[%clk 0:00:20]}  Ne2+ {[%clk 0:00:06]} 59. Ke3 {[%clk 0:00:18]}  Ng3 {[%clk 0:00:03]} 60. Kf3 {[%clk 0:00:18]}  Nf1 {[%clk 0:00:03]} 61. gxh5 {[%clk 0:00:18]}  gxh5 {[%clk 0:00:03]} 62. Kf4 {[%clk 0:00:19]}  Nd2 {[%clk 0:00:04]} 63. Kg5 {[%clk 0:00:19]}  Nxe4+ {[%clk 0:00:04]} 64. Kxh5 {[%clk 0:00:20]}  Kc4 {[%clk 0:00:04]} 65. Kg6 {[%clk 0:00:20]}  Ng3 {[%clk 0:00:04]} 66. h5 {[%clk 0:00:20]}  Nxh5 {[%clk 0:00:04]} 67. Kxh5 {[%clk 0:00:21]}  Kd5 {[%clk 0:00:05]} 68. Bd6 {[%clk 0:00:22]}  b5 {[%clk 0:00:05]} 69. Kg6 {[%clk 0:00:22]} 1-0


[Site "https://www.chess.com"]

[Event "Titled Tuesday Blitz April 18 Late 2023"]
[White "Rastbod, Ali"]
[Black "reevecanada"]
[WhiteFideId "12567477"]
[WhiteElo "2248"]
[BlackElo "2462"]
[Result "1-0"]
[Round "06"]
[TimeControl "180+2"]
[Date "2023.04.18"]
[WhiteClock "0:00:16"]
[BlackClock "0:00:10"]

1. e4 {[%clk 0:02:45]}  c5 {[%clk 0:02:59]} 2. Nc3 {[%clk 0:02:45]}  d6 {[%clk 0:02:57]} 3. d4 {[%clk 0:02:45]}  cxd4 {[%clk 0:02:56]} 4. Qxd4 {[%clk 0:02:46]}  Nc6 {[%clk 0:02:55]} 5. Qd2 {[%clk 0:02:46]}  Nf6 {[%clk 0:02:54]} 6. b3 {[%clk 0:02:47]}  e6 {[%clk 0:02:49]} 7. Bb2 {[%clk 0:02:47]}  Be7 {[%clk 0:02:49]} 8. O-O-O {[%clk 0:02:47]}  a6 {[%clk 0:02:48]} 9. f3 {[%clk 0:02:44]}  b5 {[%clk 0:02:47]} 10. Kb1 {[%clk 0:02:45]}  Bb7 {[%clk 0:02:47]} 11. g4 {[%clk 0:02:45]}  h6 {[%clk 0:02:45]} 12. h4 {[%clk 0:02:45]}  Rc8 {[%clk 0:02:46]} 13. Nh3 {[%clk 0:02:43]}  Qc7 {[%clk 0:02:45]} 14. Be2 {[%clk 0:02:35]}  Ne5 {[%clk 0:02:44]} 15. Rhg1 {[%clk 0:02:29]}  g6 {[%clk 0:02:31]} 16. Bxb5+ {[%clk 0:02:06]}  axb5 {[%clk 0:02:24]} 17. Nxb5 {[%clk 0:02:07]}  Qc5 {[%clk 0:02:07]} 18. Nxd6+ {[%clk 0:02:01]}  Bxd6 {[%clk 0:02:07]} 19. Qxd6 {[%clk 0:02:00]}  Qxd6 {[%clk 0:01:25]} 20. Rxd6 {[%clk 0:01:58]}  Nxf3 {[%clk 0:01:24]} 21. Bxf6 {[%clk 0:01:53]}  Nxg1 {[%clk 0:01:23]} 22. Nxg1 {[%clk 0:01:51]}  Rg8 {[%clk 0:01:22]} 23. e5 {[%clk 0:01:32]}  Be4 {[%clk 0:01:12]} 24. Rd2 {[%clk 0:01:32]}  Rb8 {[%clk 0:01:04]} 25. Kb2 {[%clk 0:01:27]}  Bd5 {[%clk 0:01:01]} 26. Kc1 {[%clk 0:01:22]}  g5 {[%clk 0:00:46]} 27. h5 {[%clk 0:01:18]}  Ra8 {[%clk 0:00:34]} 28. a4 {[%clk 0:01:17]}  Rb8 {[%clk 0:00:34]} 29. c4 {[%clk 0:01:14]}  Be4 {[%clk 0:00:33]} 30. Kb2 {[%clk 0:01:14]}  Bc6 {[%clk 0:00:33]} 31. Kc3 {[%clk 0:01:14]}  Ra8 {[%clk 0:00:32]} 32. Rd6 {[%clk 0:01:02]}  Rc8 {[%clk 0:00:26]} 33. a5 {[%clk 0:00:59]}  Bd7 {[%clk 0:00:22]} 34. Ne2 {[%clk 0:00:50]}  Rc6 {[%clk 0:00:20]} 35. Rd3 {[%clk 0:00:41]}  Rc5 {[%clk 0:00:19]} 36. b4 {[%clk 0:00:41]}  Rc8 {[%clk 0:00:19]} 37. Nd4 {[%clk 0:00:39]}  Ra8 {[%clk 0:00:17]} 38. c5 {[%clk 0:00:36]}  Rc8 {[%clk 0:00:18]} 39. Kc4 {[%clk 0:00:36]}  Ra8 {[%clk 0:00:14]} 40. c6 {[%clk 0:00:36]}  Bc8 {[%clk 0:00:14]} 41. Kc5 {[%clk 0:00:35]}  Rb8 {[%clk 0:00:14]} 42. b5 {[%clk 0:00:35]}  Ra8 {[%clk 0:00:14]} 43. Nb3 {[%clk 0:00:34]}  Ba6 {[%clk 0:00:13]} 44. bxa6 {[%clk 0:00:33]}  Rc8 {[%clk 0:00:12]} 45. a7 {[%clk 0:00:30]}  Ra8 {[%clk 0:00:13]} 46. a6 {[%clk 0:00:29]}  Rg6 {[%clk 0:00:12]} 47. Rd8+ {[%clk 0:00:16]}  Rxd8 {[%clk 0:00:10]} 48. Bxd8 {[%clk 0:00:17]}  Kxd8 {[%clk 0:00:09]} 49. a8=Q+ {[%clk 0:00:17]}  Ke7 {[%clk 0:00:10]} 50. c7 {[%clk 0:00:16]} 1-0


[Site "https://www.chess.com"]

[Event "Titled Tuesday Blitz April 18 Late 2023"]
[White "Melikhov, Evgeny V."]
[Black "Kozin, Yuri"]
[WhiteFideId "4122046"]
[BlackFideId "4129920"]
[WhiteElo "2158"]
[BlackElo "2630"]
[Result "1/2-1/2"]
[Round "06"]
[TimeControl "180+2"]
[Date "2023.04.18"]
[WhiteClock "0:00:38"]
[BlackClock "0:00:15"]

1. d4 {[%clk 0:03:00]}  d5 {[%clk 0:02:59]} 2. c4 {[%clk 0:03:00]}  c6 {[%clk 0:03:00]} 3. Nc3 {[%clk 0:03:01]}  Nf6 {[%clk 0:03:00]} 4. e3 {[%clk 0:03:01]}  Bf5 {[%clk 0:02:59]} 5. Nf3 {[%clk 0:03:00]}  e6 {[%clk 0:02:58]} 6. Nh4 {[%clk 0:03:00]}  Be4 {[%clk 0:02:58]} 7. f3 {[%clk 0:03:00]}  Bg6 {[%clk 0:02:58]} 8. Bd2 {[%clk 0:02:57]}  Nbd7 {[%clk 0:02:55]} 9. Qb3 {[%clk 0:02:56]}  Qc7 {[%clk 0:02:54]} 10. O-O-O {[%clk 0:02:46]}  Be7 {[%clk 0:02:51]} 11. Nxg6 {[%clk 0:02:46]}  hxg6 {[%clk 0:02:51]} 12. h3 {[%clk 0:02:35]}  Nh5 {[%clk 0:02:40]} 13. Bd3 {[%clk 0:02:30]}  Ng3 {[%clk 0:02:38]} 14. Rhe1 {[%clk 0:02:29]}  dxc4 {[%clk 0:02:32]} 15. Bxc4 {[%clk 0:02:20]}  O-O {[%clk 0:02:27]} 16. e4 {[%clk 0:01:56]}  b5 {[%clk 0:02:26]} 17. Bxe6 {[%clk 0:01:56]}  fxe6 {[%clk 0:02:18]} 18. Qxe6+ {[%clk 0:01:55]}  Rf7 {[%clk 0:02:18]} 19. Qxg6 {[%clk 0:01:54]}  b4 {[%clk 0:02:15]} 20. Na4 {[%clk 0:01:50]}  c5 {[%clk 0:01:42]} 21. d5 {[%clk 0:01:40]}  Bd6 {[%clk 0:01:40]} 22. Kb1 {[%clk 0:01:35]}  c4 {[%clk 0:01:25]} 23. Rc1 {[%clk 0:01:28]}  Nb6 {[%clk 0:01:18]} 24. b3 {[%clk 0:00:57]}  Nxa4 {[%clk 0:01:03]} 25. Rxc4 {[%clk 0:00:55]}  Nc5 {[%clk 0:01:01]} 26. Bxb4 {[%clk 0:00:53]}  Rf6 {[%clk 0:00:30]} 27. Qg4 {[%clk 0:00:49]}  Rf4 {[%clk 0:00:20]} 28. Qg6 {[%clk 0:00:38]}  Rf6 {[%clk 0:00:16]} 29. Qg4 {[%clk 0:00:38]}  Rf4 {[%clk 0:00:15]} 30. Qg6 {[%clk 0:00:38]}  Rf6 {[%clk 0:00:15]} 1/2-1/2


[Site "https://www.chess.com"]

[Event "Titled Tuesday Blitz April 18 Late 2023"]
[White "Di Berardino, Diego Rafael"]
[Black "Mazurkiewicz, Michal"]
[WhiteFideId "2105446"]
[BlackFideId "1124943"]
[WhiteElo "2432"]
[BlackElo "2054"]
[Result "1-0"]
[Round "06"]
[TimeControl "180+2"]
[Date "2023.04.18"]
[WhiteClock "0:00:47"]
[BlackClock "0:00:01"]

1. e4 {[%clk 0:03:00]}  d6 {[%clk 0:02:57]} 2. d4 {[%clk 0:03:00]}  Nf6 {[%clk 0:02:55]} 3. Nc3 {[%clk 0:03:00]}  c6 {[%clk 0:02:56]} 4. f4 {[%clk 0:02:59]}  Qb6 {[%clk 0:02:55]} 5. Nf3 {[%clk 0:02:56]}  Bg4 {[%clk 0:02:51]} 6. e5 {[%clk 0:02:33]}  Nd5 {[%clk 0:02:50]} 7. Nxd5 {[%clk 0:02:32]}  cxd5 {[%clk 0:02:51]} 8. c3 {[%clk 0:02:32]}  Nc6 {[%clk 0:02:49]} 9. Bd3 {[%clk 0:02:25]}  e6 {[%clk 0:02:41]} 10. Qe2 {[%clk 0:02:16]}  Be7 {[%clk 0:02:37]} 11. O-O {[%clk 0:02:15]}  g6 {[%clk 0:02:36]} 12. Be3 {[%clk 0:02:11]}  Bxf3 {[%clk 0:02:34]} 13. Rxf3 {[%clk 0:02:08]}  h5 {[%clk 0:02:21]} 14. b4 {[%clk 0:01:59]}  a6 {[%clk 0:02:13]} 15. a4 {[%clk 0:01:59]}  Kf8 {[%clk 0:01:56]} 16. a5 {[%clk 0:01:43]}  Qc7 {[%clk 0:01:53]} 17. Qf2 {[%clk 0:01:39]}  Na7 {[%clk 0:01:47]} 18. Bd2 {[%clk 0:01:38]}  Nb5 {[%clk 0:01:46]} 19. Rc1 {[%clk 0:01:37]}  Rc8 {[%clk 0:01:46]} 20. Rf1 {[%clk 0:01:00]}  Kg7 {[%clk 0:01:39]} 21. f5 {[%clk 0:00:49]}  exf5 {[%clk 0:01:39]} 22. Bxf5 {[%clk 0:00:49]}  Rcf8 {[%clk 0:00:58]} 23. Bxg6 {[%clk 0:00:47]}  fxg6 {[%clk 0:00:01]} 24. Rf7+ {[%clk 0:00:47]}  Kg8 {[%clk 0:00:01]} 25. Rxf8+ {[%clk 0:00:46]}  Bxf8 {[%clk 0:00:02]} 26. Qxf8+ {[%clk 0:00:46]}  Kh7 {[%clk 0:00:02]} 27. Rf7+ {[%clk 0:00:46]}  Qxf7 {[%clk 0:00:01]} 28. Qxf7# {[%clk 0:00:47]} 1-0


[Site "https://www.chess.com"]

[Event "Titled Tuesday Blitz April 18 Late 2023"]
[White "Kovacevic, Radmila"]
[Black "Vovk, Orest"]
[WhiteFideId "933171"]
[BlackFideId "14113490"]
[WhiteElo "2194"]
[BlackElo "2215"]
[Result "0-1"]
[Round "06"]
[TimeControl "180+2"]
[Date "2023.04.18"]
[WhiteClock "0:00:01"]
[BlackClock "0:00:08"]

1. e4 {[%clk 0:03:00]}  g5 {[%clk 0:02:57]} 2. d4 {[%clk 0:02:58]}  g4 {[%clk 0:02:56]} 3. h3 {[%clk 0:02:54]}  Bg7 {[%clk 0:02:44]} 4. hxg4 {[%clk 0:02:50]}  c5 {[%clk 0:02:44]} 5. c3 {[%clk 0:02:39]}  Qb6 {[%clk 0:02:44]} 6. dxc5 {[%clk 0:02:30]}  Qxc5 {[%clk 0:02:43]} 7. Be3 {[%clk 0:02:29]}  Qc6 {[%clk 0:02:37]} 8. Nd2 {[%clk 0:02:24]}  d6 {[%clk 0:02:34]} 9. Qb3 {[%clk 0:02:16]}  a6 {[%clk 0:02:27]} 10. g5 {[%clk 0:02:09]}  Nd7 {[%clk 0:02:19]} 11. Bc4 {[%clk 0:02:04]}  e6 {[%clk 0:01:58]} 12. f4 {[%clk 0:01:52]}  h6 {[%clk 0:01:54]} 13. Ngf3 {[%clk 0:01:49]}  b5 {[%clk 0:01:45]} 14. Bxe6 {[%clk 0:01:41]}  fxe6 {[%clk 0:01:37]} 15. Qxe6+ {[%clk 0:01:41]}  Ne7 {[%clk 0:01:32]} 16. Qg4 {[%clk 0:00:59]}  Nf6 {[%clk 0:01:12]} 17. Qh4 {[%clk 0:00:45]}  hxg5 {[%clk 0:01:01]} 18. Qxh8+ {[%clk 0:00:45]}  Bxh8 {[%clk 0:01:01]} 19. Rxh8+ {[%clk 0:00:45]}  Kd7 {[%clk 0:00:57]} 20. e5 {[%clk 0:00:39]}  Nfd5 {[%clk 0:00:45]} 21. e6+ {[%clk 0:00:20]}  Kc7 {[%clk 0:00:42]} 22. Nd4 {[%clk 0:00:19]}  Qb7 {[%clk 0:00:39]} 23. Nf1 {[%clk 0:00:16]}  Nxe3 {[%clk 0:00:35]} 24. Nxe3 {[%clk 0:00:17]}  Qe4 {[%clk 0:00:31]} 25. Kf2 {[%clk 0:00:14]}  gxf4 {[%clk 0:00:30]} 26. Ng4 {[%clk 0:00:11]}  Bb7 {[%clk 0:00:26]} 27. Rh2 {[%clk 0:00:08]}  Rg8 {[%clk 0:00:20]} 28. Re1 {[%clk 0:00:08]}  Qg6 {[%clk 0:00:18]} 29. Rh4 {[%clk 0:00:05]}  Qg5 {[%clk 0:00:15]} 30. g3 {[%clk 0:00:04]}  fxg3+ {[%clk 0:00:14]} 31. Kxg3 {[%clk 0:00:05]}  Rf8 {[%clk 0:00:12]} 32. Re2 {[%clk 0:00:01]}  Qf4+ {[%clk 0:00:12]} 33. Kh3 {[%clk 0:00:01]}  Qf1+ {[%clk 0:00:11]} 34. Kg3 {[%clk 0:00:01]}  Rf3+ {[%clk 0:00:08]} 0-1


[Site "https://www.chess.com"]